[Event "Titled Tuesday Blitz March 21 Early 2023"]
[White "Aradhya, Garg"]
[Black "Prado, Alexandra"]
[WhiteFideId "25006746"]
[BlackFideId "3301346"]
[WhiteElo "2263"]
[BlackElo "1759"]
[Result "1-0"]
[Round "02"]
[TimeControl "180+2"]
[Date "2023.03.21"]
[WhiteClock "0:01:24"]
[BlackClock "0:00:04"]

1. d4 {[%clk 0:03:00]}  Nf6 {[%clk 0:02:58]} 2. c4 {[%clk 0:03:01]}  g6 {[%clk 0:02:58]} 3. Nf3 {[%clk 0:03:01]}  Bg7 {[%clk 0:02:58]} 4. g3 {[%clk 0:03:01]}  O-O {[%clk 0:02:58]} 5. Bg2 {[%clk 0:03:01]}  d6 {[%clk 0:02:59]} 6. Nc3 {[%clk 0:03:01]}  Nc6 {[%clk 0:02:57]} 7. O-O {[%clk 0:03:01]}  a6 {[%clk 0:02:57]} 8. Bf4 {[%clk 0:02:58]}  Rb8 {[%clk 0:02:48]} 9. Rc1 {[%clk 0:02:57]}  Bd7 {[%clk 0:02:25]} 10. Nd5 {[%clk 0:02:44]}  Nxd5 {[%clk 0:02:04]} 11. cxd5 {[%clk 0:02:45]}  Na7 {[%clk 0:01:41]} 12. Qd2 {[%clk 0:02:39]}  e6 {[%clk 0:01:33]} 13. dxe6 {[%clk 0:02:38]}  Bxe6 {[%clk 0:01:31]} 14. d5 {[%clk 0:02:37]}  Bf5 {[%clk 0:01:26]} 15. Bh6 {[%clk 0:02:36]}  c5 {[%clk 0:01:15]} 16. dxc6 {[%clk 0:02:27]}  bxc6 {[%clk 0:01:03]} 17. Bxg7 {[%clk 0:02:27]}  Kxg7 {[%clk 0:01:02]} 18. Qd4+ {[%clk 0:02:26]}  Qf6 {[%clk 0:00:49]} 19. Qxa7 {[%clk 0:02:26]}  Rxb2 {[%clk 0:00:42]} 20. Qxa6 {[%clk 0:02:01]}  c5 {[%clk 0:00:34]} 21. Rfd1 {[%clk 0:02:00]}  Rd8 {[%clk 0:00:26]} 22. a4 {[%clk 0:01:42]}  Bc8 {[%clk 0:00:20]} 23. Qa5 {[%clk 0:01:37]}  Rxe2 {[%clk 0:00:19]} 24. Rxc5 {[%clk 0:01:36]}  Rde8 {[%clk 0:00:15]} 25. Rcc1 {[%clk 0:01:33]}  Bg4 {[%clk 0:00:15]} 26. Qc3 {[%clk 0:01:31]}  Qxc3 {[%clk 0:00:11]} 27. Rxc3 {[%clk 0:01:31]}  Bxf3 {[%clk 0:00:08]} 28. Bxf3 {[%clk 0:01:30]}  Re1+ {[%clk 0:00:09]} 29. Rxe1 {[%clk 0:01:30]}  Rxe1+ {[%clk 0:00:10]} 30. Kg2 {[%clk 0:01:31]}  Ra1 {[%clk 0:00:06]} 31. Bc6 {[%clk 0:01:24]}  d5 {[%clk 0:00:04]} 32. Rd3 {[%clk 0:01:24]} 1-0


[Site "https://www.chess.com"]

[Event "Titled Tuesday Blitz March 21 Early 2023"]
[White "Jaskolka, Tomasz"]
[Black "Timofeev, Artyom"]
[WhiteFideId "1170791"]
[BlackFideId "4140419"]
[WhiteElo "2155"]
[BlackElo "2586"]
[Result "1-0"]
[Round "02"]
[TimeControl "180+2"]
[Date "2023.03.21"]
[WhiteClock "0:00:11"]
[BlackClock "0:00:46"]

1. d4 {[%clk 0:03:00]}  d5 {[%clk 0:02:58]} 2. Bf4 {[%clk 0:03:00]}  Nf6 {[%clk 0:02:57]} 3. e3 {[%clk 0:03:01]}  e6 {[%clk 0:02:57]} 4. c3 {[%clk 0:03:01]}  Bd6 {[%clk 0:02:57]} 5. Bg3 {[%clk 0:03:01]}  b6 {[%clk 0:02:57]} 6. Nd2 {[%clk 0:03:00]}  Bb7 {[%clk 0:02:57]} 7. Ngf3 {[%clk 0:03:00]}  O-O {[%clk 0:02:56]} 8. Bd3 {[%clk 0:02:59]}  Ne4 {[%clk 0:02:56]} 9. Ne5 {[%clk 0:02:58]}  Nd7 {[%clk 0:02:54]} 10. Qf3 {[%clk 0:02:31]}  f5 {[%clk 0:02:52]} 11. Qe2 {[%clk 0:02:26]}  Nxg3 {[%clk 0:02:46]} 12. hxg3 {[%clk 0:02:24]}  Bxe5 {[%clk 0:02:39]} 13. dxe5 {[%clk 0:02:17]}  Nxe5 {[%clk 0:02:39]} 14. Bc2 {[%clk 0:02:18]}  a5 {[%clk 0:02:39]} 15. g4 {[%clk 0:02:17]}  Nxg4 {[%clk 0:02:34]} 16. O-O-O {[%clk 0:02:16]}  Ne5 {[%clk 0:02:25]} 17. g4 {[%clk 0:02:12]}  Ba6 {[%clk 0:02:25]} 18. c4 {[%clk 0:02:05]}  dxc4 {[%clk 0:02:07]} 19. gxf5 {[%clk 0:01:53]}  Nd3+ {[%clk 0:02:07]} 20. Kb1 {[%clk 0:01:45]}  Qf6 {[%clk 0:02:06]} 21. Bxd3 {[%clk 0:01:45]}  cxd3 {[%clk 0:02:06]} 22. Qh5 {[%clk 0:01:37]}  Qxf5 {[%clk 0:02:05]} 23. Qh4 {[%clk 0:01:37]}  h6 {[%clk 0:01:40]} 24. Rdg1 {[%clk 0:01:36]}  Rf6 {[%clk 0:01:35]} 25. Ne4 {[%clk 0:01:16]}  Rg6 {[%clk 0:01:29]} 26. Ng3 {[%clk 0:01:07]}  Qxf2 {[%clk 0:01:21]} 27. Qe4 {[%clk 0:01:06]}  Rxg3 {[%clk 0:01:08]} 28. Qxa8+ {[%clk 0:01:05]}  Kh7 {[%clk 0:01:07]} 29. Rxg3 {[%clk 0:00:59]}  Qxg3 {[%clk 0:01:06]} 30. Qxa6 {[%clk 0:00:55]}  Qxe3 {[%clk 0:01:06]} 31. Rd1 {[%clk 0:00:55]}  h5 {[%clk 0:01:06]} 32. Qxd3+ {[%clk 0:00:46]}  Qxd3+ {[%clk 0:01:06]} 33. Rxd3 {[%clk 0:00:47]}  h4 {[%clk 0:01:05]} 34. Kc2 {[%clk 0:00:42]}  g5 {[%clk 0:01:04]} 35. Kd2 {[%clk 0:00:42]}  Kg6 {[%clk 0:01:04]} 36. Ke2 {[%clk 0:00:43]}  Kf5 {[%clk 0:01:04]} 37. Rd7 {[%clk 0:00:37]}  c5 {[%clk 0:01:03]} 38. Rb7 {[%clk 0:00:35]}  g4 {[%clk 0:01:03]} 39. Rxb6 {[%clk 0:00:34]}  h3 {[%clk 0:01:03]} 40. Kf2 {[%clk 0:00:33]}  e5 {[%clk 0:01:02]} 41. Kg3 {[%clk 0:00:29]}  e4 {[%clk 0:01:02]} 42. Rb3 {[%clk 0:00:19]}  h2 {[%clk 0:00:49]} 43. Kxh2 {[%clk 0:00:19]}  Kf4 {[%clk 0:00:49]} 44. Kg2 {[%clk 0:00:19]}  e3 {[%clk 0:00:50]} 45. Rc3 {[%clk 0:00:19]}  Ke4 {[%clk 0:00:49]} 46. Rxc5 {[%clk 0:00:14]}  Kd3 {[%clk 0:00:50]} 47. Rxa5 {[%clk 0:00:13]}  e2 {[%clk 0:00:50]} 48. Rd5+ {[%clk 0:00:13]}  Ke4 {[%clk 0:00:48]} 49. Rd8 {[%clk 0:00:13]}  Ke3 {[%clk 0:00:45]} 50. Re8+ {[%clk 0:00:11]}  Kd2 {[%clk 0:00:46]} 51. a4 {[%clk 0:00:10]}  e1=Q {[%clk 0:00:46]} 52. Rxe1 {[%clk 0:00:10]}  Kxe1 {[%clk 0:00:46]} 53. a5 {[%clk 0:00:11]}  Kd2 {[%clk 0:00:46]} 54. a6 {[%clk 0:00:11]} 1-0


[Site "https://www.chess.com"]

[Event "Titled Tuesday Blitz March 21 Early 2023"]
[White "Pichot, Alan"]
[Black "Vaglio Munoz, Jaime"]
[WhiteFideId "110973"]
[BlackFideId "6500145"]
[WhiteElo "2573"]
[BlackElo "2199"]
[Result "0-1"]
[Round "02"]
[TimeControl "180+2"]
[Date "2023.03.21"]
[WhiteClock "0:00:19"]
[BlackClock "0:00:15"]

1. e4 {[%clk 0:02:46]}  c6 {[%clk 0:02:54]} 2. Nf3 {[%clk 0:02:45]}  d5 {[%clk 0:02:53]} 3. Nc3 {[%clk 0:02:45]}  dxe4 {[%clk 0:02:53]} 4. Nxe4 {[%clk 0:02:45]}  Bg4 {[%clk 0:02:53]} 5. h3 {[%clk 0:02:45]}  Bh5 {[%clk 0:02:52]} 6. Bc4 {[%clk 0:02:44]}  e6 {[%clk 0:02:51]} 7. c3 {[%clk 0:02:42]}  Nf6 {[%clk 0:02:50]} 8. Nxf6+ {[%clk 0:02:40]}  Qxf6 {[%clk 0:02:49]} 9. d4 {[%clk 0:02:31]}  Bxf3 {[%clk 0:02:47]} 10. Qxf3 {[%clk 0:02:32]}  Qxf3 {[%clk 0:02:46]} 11. gxf3 {[%clk 0:02:33]}  Nd7 {[%clk 0:02:46]} 12. Be3 {[%clk 0:02:32]}  Nb6 {[%clk 0:02:37]} 13. Bb3 {[%clk 0:02:32]}  Nd5 {[%clk 0:02:37]} 14. Ke2 {[%clk 0:02:29]}  g6 {[%clk 0:02:35]} 15. a4 {[%clk 0:02:27]}  a5 {[%clk 0:02:34]} 16. Rae1 {[%clk 0:02:23]}  Kd7 {[%clk 0:02:33]} 17. Kd3 {[%clk 0:02:23]}  Bd6 {[%clk 0:02:32]} 18. Bd2 {[%clk 0:02:23]}  Nf4+ {[%clk 0:02:30]} 19. Kc2 {[%clk 0:02:19]}  g5 {[%clk 0:02:29]} 20. Re4 {[%clk 0:02:18]}  f5 {[%clk 0:02:28]} 21. Ree1 {[%clk 0:02:18]}  Rae8 {[%clk 0:02:27]} 22. h4 {[%clk 0:02:13]}  h6 {[%clk 0:02:25]} 23. hxg5 {[%clk 0:02:13]}  hxg5 {[%clk 0:02:25]} 24. Rxh8 {[%clk 0:02:14]}  Rxh8 {[%clk 0:02:25]} 25. Bxf4 {[%clk 0:02:11]}  Bxf4 {[%clk 0:02:05]} 26. Bxe6+ {[%clk 0:02:10]}  Kd6 {[%clk 0:02:01]} 27. Bxf5 {[%clk 0:02:11]}  Rh2 {[%clk 0:02:00]} 28. Re2 {[%clk 0:02:10]}  Bg3 {[%clk 0:01:59]} 29. Kd3 {[%clk 0:02:05]}  Rxf2 {[%clk 0:01:57]} 30. Re6+ {[%clk 0:02:06]}  Kc7 {[%clk 0:01:57]} 31. Re7+ {[%clk 0:01:53]}  Kd8 {[%clk 0:01:40]} 32. Rxb7 {[%clk 0:01:40]}  Rxf3+ {[%clk 0:01:39]} 33. Ke4 {[%clk 0:01:40]}  Rf4+ {[%clk 0:01:36]} 34. Ke5 {[%clk 0:01:41]}  g4 {[%clk 0:01:21]} 35. Ke6 {[%clk 0:01:37]}  Rf2 {[%clk 0:01:18]} 36. Bxg4 {[%clk 0:01:33]}  Kc8 {[%clk 0:01:16]} 37. Rb3 {[%clk 0:01:25]}  Kc7 {[%clk 0:01:15]} 38. Bf5 {[%clk 0:01:16]}  Re2+ {[%clk 0:01:14]} 39. Kf6 {[%clk 0:01:15]}  Bf4 {[%clk 0:01:13]} 40. Bd3 {[%clk 0:01:09]}  Rf2 {[%clk 0:01:10]} 41. Ke6 {[%clk 0:01:02]}  Bc1 {[%clk 0:01:09]} 42. d5 {[%clk 0:00:55]}  cxd5 {[%clk 0:01:05]} 43. Rb5 {[%clk 0:00:53]}  Rxb2 {[%clk 0:01:03]} 44. Rxa5 {[%clk 0:00:49]}  Ra2 {[%clk 0:00:55]} 45. Kxd5 {[%clk 0:00:48]}  Bd2 {[%clk 0:00:54]} 46. Kd4 {[%clk 0:00:44]}  Ra3 {[%clk 0:00:52]} 47. Rc5+ {[%clk 0:00:43]}  Kd6 {[%clk 0:00:50]} 48. Rc4 {[%clk 0:00:42]}  Be1 {[%clk 0:00:46]} 49. Be4 {[%clk 0:00:42]}  Bf2+ {[%clk 0:00:44]} 50. Kd3 {[%clk 0:00:42]}  Bc5 {[%clk 0:00:43]} 51. Bg6 {[%clk 0:00:40]}  Rb3 {[%clk 0:00:41]} 52. Be8 {[%clk 0:00:40]}  Ra3 {[%clk 0:00:40]} 53. Bb5 {[%clk 0:00:40]}  Ra2 {[%clk 0:00:38]} 54. Rh4 {[%clk 0:00:39]}  Ra3 {[%clk 0:00:37]} 55. Kc4 {[%clk 0:00:38]}  Bf2 {[%clk 0:00:36]} 56. Rh6+ {[%clk 0:00:37]}  Kc7 {[%clk 0:00:35]} 57. Kb4 {[%clk 0:00:37]}  Ra1 {[%clk 0:00:33]} 58. Rh7+ {[%clk 0:00:37]}  Kd6 {[%clk 0:00:32]} 59. Rd7+ {[%clk 0:00:37]}  Ke6 {[%clk 0:00:31]} 60. Rd2 {[%clk 0:00:37]}  Be1 {[%clk 0:00:30]} 61. Re2+ {[%clk 0:00:37]}  Kd6 {[%clk 0:00:30]} 62. a5 {[%clk 0:00:28]}  Rc1 {[%clk 0:00:21]} 63. Re3 {[%clk 0:00:27]}  Kc7 {[%clk 0:00:20]} 64. Re7+ {[%clk 0:00:23]}  Kc8 {[%clk 0:00:18]} 65. Re3 {[%clk 0:00:20]}  Kc7 {[%clk 0:00:17]} 66. a6 {[%clk 0:00:20]}  Ra1 {[%clk 0:00:16]} 67. Kc5 {[%clk 0:00:19]}  Bf2 {[%clk 0:00:15]} 0-1


[Site "https://www.chess.com"]

[Event "Titled Tuesday Blitz March 21 Early 2023"]
[White "Zohid6"]
[Black "Grot, Blazej"]
[BlackFideId "21835845"]
[WhiteElo "2785"]
[BlackElo "1823"]
[Result "1-0"]
[Round "02"]
[TimeControl "180+2"]
[Date "2023.03.21"]
[WhiteClock "0:00:30"]
[BlackClock "0:00:03"]

1. e4 {[%clk 0:03:00]}  c5 {[%clk 0:02:59]} 2. Nf3 {[%clk 0:02:59]}  e6 {[%clk 0:02:58]} 3. d4 {[%clk 0:02:59]}  cxd4 {[%clk 0:02:56]} 4. Nxd4 {[%clk 0:03:00]}  Nc6 {[%clk 0:02:56]} 5. Nc3 {[%clk 0:03:00]}  Nf6 {[%clk 0:02:54]} 6. Be2 {[%clk 0:02:59]}  Bb4 {[%clk 0:02:50]} 7. O-O {[%clk 0:02:56]}  Bxc3 {[%clk 0:02:49]} 8. bxc3 {[%clk 0:02:56]}  Nxe4 {[%clk 0:02:42]} 9. Bd3 {[%clk 0:02:55]}  d5 {[%clk 0:02:38]} 10. Qg4 {[%clk 0:02:47]}  O-O {[%clk 0:02:32]} 11. Nxc6 {[%clk 0:02:37]}  bxc6 {[%clk 0:02:31]} 12. Bxe4 {[%clk 0:02:38]}  dxe4 {[%clk 0:02:30]} 13. Qxe4 {[%clk 0:02:38]}  Qd5 {[%clk 0:02:25]} 14. Qg4 {[%clk 0:02:35]}  e5 {[%clk 0:02:20]} 15. Qg3 {[%clk 0:02:35]}  Bf5 {[%clk 0:02:15]} 16. h4 {[%clk 0:02:20]}  h5 {[%clk 0:02:10]} 17. Ba3 {[%clk 0:02:13]}  Rfd8 {[%clk 0:02:08]} 18. Rfe1 {[%clk 0:02:11]}  Re8 {[%clk 0:02:03]} 19. Kh2 {[%clk 0:02:08]}  Bxc2 {[%clk 0:01:57]} 20. Re2 {[%clk 0:01:59]}  Bg6 {[%clk 0:01:54]} 21. Rae1 {[%clk 0:01:58]}  a5 {[%clk 0:01:46]} 22. Bc1 {[%clk 0:01:50]}  Kh7 {[%clk 0:01:42]} 23. Rxe5 {[%clk 0:01:26]}  Rxe5 {[%clk 0:01:40]} 24. Rxe5 {[%clk 0:01:27]}  Qxa2 {[%clk 0:01:39]} 25. Be3 {[%clk 0:01:27]}  a4 {[%clk 0:01:37]} 26. Bd4 {[%clk 0:01:27]}  f6 {[%clk 0:01:23]} 27. Re7 {[%clk 0:01:26]}  Rf8 {[%clk 0:01:24]} 28. Ra7 {[%clk 0:01:23]}  Rf7 {[%clk 0:01:19]} 29. Ra8 {[%clk 0:01:20]}  Rb7 {[%clk 0:01:15]} 30. Qd6 {[%clk 0:01:13]}  Qe2 {[%clk 0:01:13]} 31. Qf8 {[%clk 0:01:04]}  Bf7 {[%clk 0:01:07]} 32. Rxa4 {[%clk 0:00:49]}  Bd5 {[%clk 0:01:06]} 33. Be3 {[%clk 0:00:47]}  Qg4 {[%clk 0:01:01]} 34. Rxg4 {[%clk 0:00:46]}  hxg4 {[%clk 0:00:57]} 35. Qe8 {[%clk 0:00:46]}  Bf7 {[%clk 0:00:54]} 36. Qxc6 {[%clk 0:00:46]}  g3+ {[%clk 0:00:49]} 37. fxg3 {[%clk 0:00:45]}  Re7 {[%clk 0:00:43]} 38. Bd4 {[%clk 0:00:45]}  Be8 {[%clk 0:00:38]} 39. Qf3 {[%clk 0:00:44]}  Bg6 {[%clk 0:00:33]} 40. h5 {[%clk 0:00:40]}  Be4 {[%clk 0:00:27]} 41. Qg4 {[%clk 0:00:40]}  Kh6 {[%clk 0:00:22]} 42. Bc5 {[%clk 0:00:37]}  Re5 {[%clk 0:00:18]} 43. Be3+ {[%clk 0:00:37]}  Kh7 {[%clk 0:00:18]} 44. Bf4 {[%clk 0:00:37]}  Rd5 {[%clk 0:00:16]} 45. c4 {[%clk 0:00:36]}  Rc5 {[%clk 0:00:15]} 46. Qd7 {[%clk 0:00:35]}  Rxh5+ {[%clk 0:00:11]} 47. Kg1 {[%clk 0:00:34]}  Ra5 {[%clk 0:00:11]} 48. c5 {[%clk 0:00:31]}  Ra2 {[%clk 0:00:10]} 49. Qh3+ {[%clk 0:00:29]}  Kg6 {[%clk 0:00:06]} 50. Qg4+ {[%clk 0:00:30]}  Kh7 {[%clk 0:00:06]} 51. Qh5+ {[%clk 0:00:28]}  Kg8 {[%clk 0:00:05]} 52. Qe8+ {[%clk 0:00:29]}  Kh7 {[%clk 0:00:03]} 53. Qxe4+ {[%clk 0:00:30]} 1-0


[Site "https://www.chess.com"]

[Event "Titled Tuesday Blitz March 21 Early 2023"]
[White "Harshavardhan G B"]
[Black "Ronka, Erik"]
[WhiteFideId "25059009"]
[BlackFideId "505080"]
[WhiteElo "2323"]
[BlackElo "2264"]
[Result "0-1"]
[Round "02"]
[TimeControl "180+2"]
[Date "2023.03.21"]
[WhiteClock "0:00:19"]
[BlackClock "0:00:15"]

1. Nf3 {[%clk 0:03:00]}  d5 {[%clk 0:02:59]} 2. g3 {[%clk 0:02:57]}  Nf6 {[%clk 0:02:57]} 3. Bg2 {[%clk 0:02:57]}  e6 {[%clk 0:02:57]} 4. O-O {[%clk 0:02:56]}  c5 {[%clk 0:02:57]} 5. d3 {[%clk 0:02:57]}  Nc6 {[%clk 0:02:56]} 6. Nbd2 {[%clk 0:02:58]}  Be7 {[%clk 0:02:55]} 7. e4 {[%clk 0:02:58]}  O-O {[%clk 0:02:55]} 8. b3 {[%clk 0:02:58]}  b5 {[%clk 0:02:34]} 9. a4 {[%clk 0:02:54]}  b4 {[%clk 0:02:33]} 10. Bb2 {[%clk 0:02:52]}  Ba6 {[%clk 0:02:06]} 11. Re1 {[%clk 0:02:50]}  Rc8 {[%clk 0:02:06]} 12. Qe2 {[%clk 0:02:47]}  Qc7 {[%clk 0:01:46]} 13. e5 {[%clk 0:02:34]}  Nd7 {[%clk 0:01:44]} 14. h4 {[%clk 0:02:34]}  Rfd8 {[%clk 0:01:43]} 15. h5 {[%clk 0:02:33]}  h6 {[%clk 0:01:42]} 16. Bh3 {[%clk 0:02:30]}  c4 {[%clk 0:01:18]} 17. Nf1 {[%clk 0:02:03]}  cxd3 {[%clk 0:01:10]} 18. cxd3 {[%clk 0:02:03]}  Nc5 {[%clk 0:01:10]} 19. Rad1 {[%clk 0:02:01]}  Nxb3 {[%clk 0:01:08]} 20. Ne3 {[%clk 0:02:00]}  Qb6 {[%clk 0:00:54]} 21. Ng4 {[%clk 0:01:55]}  Ncd4 {[%clk 0:00:47]} 22. Nxd4 {[%clk 0:01:54]}  Nxd4 {[%clk 0:00:48]} 23. Qe3 {[%clk 0:01:43]}  Nc2 {[%clk 0:00:43]} 24. Qxb6 {[%clk 0:01:12]}  axb6 {[%clk 0:00:44]} 25. Re2 {[%clk 0:01:07]}  b3 {[%clk 0:00:41]} 26. f4 {[%clk 0:01:07]}  Nb4 {[%clk 0:00:40]} 27. Red2 {[%clk 0:01:07]}  Rc2 {[%clk 0:00:39]} 28. Nf2 {[%clk 0:01:05]}  Rxd2 {[%clk 0:00:31]} 29. Rxd2 {[%clk 0:01:05]}  Rc8 {[%clk 0:00:26]} 30. f5 {[%clk 0:01:04]}  Rc2 {[%clk 0:00:26]} 31. Rxc2 {[%clk 0:01:03]}  bxc2 {[%clk 0:00:27]} 32. fxe6 {[%clk 0:01:02]}  Na2 {[%clk 0:00:25]} 33. exf7+ {[%clk 0:01:00]}  Kxf7 {[%clk 0:00:26]} 34. Bg2 {[%clk 0:00:20]}  Bb7 {[%clk 0:00:25]} 35. Ng4 {[%clk 0:00:16]}  c1=Q+ {[%clk 0:00:24]} 36. Bxc1 {[%clk 0:00:16]}  Nxc1 {[%clk 0:00:25]} 37. Bf1 {[%clk 0:00:16]}  Ba6 {[%clk 0:00:23]} 38. Ne3 {[%clk 0:00:08]}  Ke6 {[%clk 0:00:22]} 39. d4 {[%clk 0:00:08]}  Bxf1 {[%clk 0:00:21]} 40. Kxf1 {[%clk 0:00:08]}  Nb3 {[%clk 0:00:21]} 41. Nc2 {[%clk 0:00:08]}  Kf5 {[%clk 0:00:16]} 42. Kf2 {[%clk 0:00:06]}  Ke4 {[%clk 0:00:16]} 43. e6 {[%clk 0:00:07]}  Nxd4 {[%clk 0:00:16]} 44. Ne3 {[%clk 0:00:07]}  Nxe6 {[%clk 0:00:16]} 45. Nd1 {[%clk 0:00:06]}  d4 {[%clk 0:00:16]} 46. Nb2 {[%clk 0:00:06]}  d3 {[%clk 0:00:16]} 47. Nc4 {[%clk 0:00:06]}  Bc5+ {[%clk 0:00:17]} 48. Ke1 {[%clk 0:00:06]}  Nd4 {[%clk 0:00:16]} 49. Kd2 {[%clk 0:00:05]}  Nf3+ {[%clk 0:00:16]} 50. Kc3 {[%clk 0:00:06]}  Ne5 {[%clk 0:00:14]} 51. Nd2+ {[%clk 0:00:06]}  Kd5 {[%clk 0:00:14]} 52. Nb3 {[%clk 0:00:04]}  Be3 {[%clk 0:00:14]} 53. Kb2 {[%clk 0:00:03]}  d2 {[%clk 0:00:14]} 54. Kc2 {[%clk 0:00:03]}  Nc4 {[%clk 0:00:14]} 55. Nxd2 {[%clk 0:00:03]}  Bxd2 {[%clk 0:00:14]} 56. g4 {[%clk 0:00:03]}  Bg5 {[%clk 0:00:14]} 57. a5 {[%clk 0:00:03]}  bxa5 {[%clk 0:00:14]} 58. Kb3 {[%clk 0:00:04]}  Ke4 {[%clk 0:00:14]} 59. Ka4 {[%clk 0:00:05]}  Kf4 {[%clk 0:00:15]} 60. Kb5 {[%clk 0:00:06]}  Kxg4 {[%clk 0:00:16]} 61. Kxc4 {[%clk 0:00:07]}  Kxh5 {[%clk 0:00:16]} 62. Kb5 {[%clk 0:00:07]}  Kg4 {[%clk 0:00:17]} 63. Kxa5 {[%clk 0:00:08]}  h5 {[%clk 0:00:18]} 64. Kb5 {[%clk 0:00:09]}  h4 {[%clk 0:00:19]} 65. Kc4 {[%clk 0:00:09]}  Kg3 {[%clk 0:00:20]} 66. Kd5 {[%clk 0:00:10]}  h3 {[%clk 0:00:20]} 67. Ke6 {[%clk 0:00:11]}  h2 {[%clk 0:00:21]} 68. Kf5 {[%clk 0:00:12]}  h1=Q {[%clk 0:00:20]} 69. Kg6 {[%clk 0:00:13]}  Be3 {[%clk 0:00:20]} 70. Kxg7 {[%clk 0:00:13]}  Kf4 {[%clk 0:00:19]} 71. Kg6 {[%clk 0:00:14]}  Qg2+ {[%clk 0:00:19]} 72. Kf6 {[%clk 0:00:15]}  Qg5+ {[%clk 0:00:19]} 73. Ke6 {[%clk 0:00:16]}  Qf5+ {[%clk 0:00:18]} 74. Kd6 {[%clk 0:00:17]}  Ke4 {[%clk 0:00:18]} 75. Kc6 {[%clk 0:00:18]}  Qd5+ {[%clk 0:00:18]} 76. Kc7 {[%clk 0:00:18]}  Ke5 {[%clk 0:00:17]} 77. Kb8 {[%clk 0:00:18]}  Qf7 {[%clk 0:00:16]} 78. Ka8 {[%clk 0:00:18]}  Kd6 {[%clk 0:00:16]} 79. Kb8 {[%clk 0:00:19]}  Qc7+ {[%clk 0:00:15]} 80. Ka8 {[%clk 0:00:19]}  Qa7# {[%clk 0:00:15]} 0-1


[Site "https://www.chess.com"]

[Event "Titled Tuesday Blitz March 21 Early 2023"]
[White "Topalov, Aleksandar"]
[Black "Vaishali, Rameshbabu"]
[WhiteFideId "925659"]
[BlackFideId "5091756"]
[WhiteElo "2151"]
[BlackElo "2410"]
[Result "0-1"]
[Round "02"]
[TimeControl "180+2"]
[Date "2023.03.21"]
[WhiteClock "0:01:37"]
[BlackClock "0:01:21"]

1. b3 {[%clk 0:03:00]}  e5 {[%clk 0:02:58]} 2. Bb2 {[%clk 0:03:01]}  Nc6 {[%clk 0:02:57]} 3. c4 {[%clk 0:03:00]}  Nge7 {[%clk 0:02:56]} 4. e3 {[%clk 0:03:00]}  d5 {[%clk 0:02:56]} 5. cxd5 {[%clk 0:03:00]}  Nxd5 {[%clk 0:02:57]} 6. a3 {[%clk 0:03:01]}  Be6 {[%clk 0:02:58]} 7. Qc2 {[%clk 0:03:01]}  Qd7 {[%clk 0:02:58]} 8. Nf3 {[%clk 0:03:01]}  f6 {[%clk 0:02:58]} 9. d3 {[%clk 0:03:00]}  g5 {[%clk 0:02:58]} 10. h3 {[%clk 0:03:00]}  h5 {[%clk 0:02:58]} 11. Nbd2 {[%clk 0:03:00]}  O-O-O {[%clk 0:02:57]} 12. O-O-O {[%clk 0:02:58]}  Be7 {[%clk 0:02:36]} 13. g3 {[%clk 0:02:57]}  Kb8 {[%clk 0:02:28]} 14. Kb1 {[%clk 0:02:57]}  g4 {[%clk 0:02:06]} 15. hxg4 {[%clk 0:02:53]}  hxg4 {[%clk 0:02:07]} 16. Rxh8 {[%clk 0:02:53]}  Rxh8 {[%clk 0:02:08]} 17. Nh4 {[%clk 0:02:48]}  Rd8 {[%clk 0:02:04]} 18. Nc4 {[%clk 0:02:43]}  Nb6 {[%clk 0:02:03]} 19. Be2 {[%clk 0:02:42]}  Qe8 {[%clk 0:01:56]} 20. b4 {[%clk 0:02:29]}  a6 {[%clk 0:01:53]} 21. Nxb6 {[%clk 0:02:23]}  cxb6 {[%clk 0:01:53]} 22. d4 {[%clk 0:02:19]}  exd4 {[%clk 0:01:35]} 23. Bxd4 {[%clk 0:02:18]}  Nxd4 {[%clk 0:01:32]} 24. Rxd4 {[%clk 0:02:18]}  Rc8 {[%clk 0:01:30]} 25. Qb2 {[%clk 0:02:09]}  f5 {[%clk 0:01:26]} 26. Rd1 {[%clk 0:02:04]}  Qf7 {[%clk 0:01:24]} 27. Rc1 {[%clk 0:01:43]}  Ba2+ {[%clk 0:01:20]} 28. Ka1 {[%clk 0:01:38]}  Rxc1+ {[%clk 0:01:20]} 29. Qxc1 {[%clk 0:01:37]}  Bf6+ {[%clk 0:01:21]} 0-1


[Site "https://www.chess.com"]

[Event "Titled Tuesday Blitz March 21 Early 2023"]
[White "Turayev, Shahruh"]
[Black "Meunier-Pion, Jean"]
[WhiteFideId "14003856"]
[BlackFideId "20685327"]
[WhiteElo "2171"]
[BlackElo "2124"]
[Result "1-0"]
[Round "02"]
[TimeControl "180+2"]
[Date "2023.03.21"]
[WhiteClock "0:01:50"]
[BlackClock "0:00:02"]

1. e4 {[%clk 0:03:00]}  c5 {[%clk 0:02:58]} 2. Nc3 {[%clk 0:03:00]}  d6 {[%clk 0:02:58]} 3. f4 {[%clk 0:03:00]}  g6 {[%clk 0:02:58]} 4. Nf3 {[%clk 0:02:57]}  Bg7 {[%clk 0:02:57]} 5. Bc4 {[%clk 0:02:55]}  Nc6 {[%clk 0:02:56]} 6. O-O {[%clk 0:02:55]}  e6 {[%clk 0:02:56]} 7. d3 {[%clk 0:02:56]}  Nge7 {[%clk 0:02:56]} 8. Qe1 {[%clk 0:02:56]}  O-O {[%clk 0:02:53]} 9. f5 {[%clk 0:02:56]}  gxf5 {[%clk 0:02:52]} 10. Qg3 {[%clk 0:02:56]}  fxe4 {[%clk 0:02:14]} 11. dxe4 {[%clk 0:02:55]}  Ne5 {[%clk 0:01:57]} 12. Nxe5 {[%clk 0:02:51]}  dxe5 {[%clk 0:01:56]} 13. Kh1 {[%clk 0:02:51]}  Ng6 {[%clk 0:01:52]} 14. Bg5 {[%clk 0:02:48]}  f6 {[%clk 0:01:23]} 15. Be3 {[%clk 0:02:46]}  Qe7 {[%clk 0:01:19]} 16. h4 {[%clk 0:02:46]}  h5 {[%clk 0:00:41]} 17. Qxg6 {[%clk 0:02:43]}  Bd7 {[%clk 0:00:41]} 18. Bh6 {[%clk 0:02:39]}  Rf7 {[%clk 0:00:41]} 19. Nd5 {[%clk 0:02:27]}  exd5 {[%clk 0:00:39]} 20. Bxd5 {[%clk 0:02:28]}  Be6 {[%clk 0:00:39]} 21. Rad1 {[%clk 0:02:21]}  Bxd5 {[%clk 0:00:38]} 22. Rxd5 {[%clk 0:02:22]}  Kh8 {[%clk 0:00:26]} 23. Qxh5 {[%clk 0:02:19]}  Bxh6 {[%clk 0:00:26]} 24. Qxh6+ {[%clk 0:02:20]}  Kg8 {[%clk 0:00:25]} 25. Rf3 {[%clk 0:02:15]}  Raf8 {[%clk 0:00:19]} 26. Rxc5 {[%clk 0:02:08]}  Rg7 {[%clk 0:00:13]} 27. Rcc3 {[%clk 0:02:07]}  Qe6 {[%clk 0:00:07]} 28. Rg3 {[%clk 0:02:06]}  Rf7 {[%clk 0:00:07]} 29. h5 {[%clk 0:02:03]}  Qd7 {[%clk 0:00:06]} 30. Kh2 {[%clk 0:01:53]}  Qe6 {[%clk 0:00:01]} 31. Rcd3 {[%clk 0:01:52]}  Qc8 {[%clk 0:00:02]} 32. c4 {[%clk 0:01:51]}  f5 {[%clk 0:00:02]} 33. exf5 {[%clk 0:01:50]} 1-0


[Site "https://www.chess.com"]